fUST/lending_fUST_20241106
["ID","MTS","AMOUNT","RATE_DAILY","PERIOD"]
[341430924,1730879440716,-151.0,0.0003178,3]
[341430926,1730879440726,-3000.0,0.0003178,9]
[341430928,1730879440736,-151.0,0.0003178,7]
[341430930,1730879440745,-151.0,0.0003178,7]
[341430932,1730879440755,-219.922894,0.0003178,7]
[341430935,1730879440765,-219.922894,0.0003178,7]
[341430936,1730879440774,-151.0,0.0003178,7]
[341430938,1730879440785,-151.0,0.0003178,7]
[341430940,1730879440796,-299.480882,0.0003178,7]
[341430942,1730879440811,-155.444451,0.0003178,7]
[341430944,1730879440822,-151.0,0.0003178,7]
[341430946,1730879440833,-151.0,0.0003178,7]
[341430947,1730879440842,-151.0,0.0003178,7]
[341430949,1730879440853,-151.0,0.0003178,7]
[341430951,1730879440863,-162.892431,0.0003178,7]
[341430953,1730879440873,-162.892431,0.0003178,7]
[341430955,1730879440884,-151.0,0.0003178,7]
[341430957,1730879440894,-151.0,0.0003178,7]
[341430958,1730879440904,-788.693941,0.0003178,7]
[341430959,1730879440913,-788.693941,0.0003178,7]
[341430961,1730879440923,-151.0,0.0003178,7]
[341430963,1730879440933,-570.463046,0.0003178,7]
[341430965,1730879440942,-570.463046,0.0003178,7]
[341430967,1730879440951,-151.0,0.0003178,7]
[341430969,1730879440961,-534.073727,0.0003178,7]
[341430970,1730879440971,-534.073727,0.0003178,7]
[341430971,1730879440981,-151.0,0.0003178,7]
[341430972,1730879440990,-317.02945,0.0003178,7]
[341430973,1730879441000,-317.02945,0.0003178,7]
[341430974,1730879441010,-181.956772,0.0003178,7]
[341430975,1730879441020,-181.956772,0.0003178,7]
[341430976,1730879441031,-203.96632,0.0003178,7]
[341430977,1730879441041,-203.96632,0.0003178,7]
[341430978,1730879441051,-1089.292932,0.0003178,7]
[341430979,1730879441063,-1089.292932,0.0003178,7]
[341430980,1730879441075,-151.0,0.0003178,7]
[341430982,1730879441085,-152.273161,0.0003178,7]
[341430984,1730879441095,-152.273161,0.0003178,7]
[341430986,1730879441104,-830.044982,0.0003178,7]
[341430987,1730879441115,-830.044982,0.0003178,7]
[341430988,1730879441125,-151.0,0.0003179,7]
[341430989,1730879441134,-623.235953,0.0003179,7]
[341430990,1730879441143,-623.235953,0.0003179,7]
[341430991,1730879441153,-151.0,0.0003179,7]
[341430992,1730879441163,-3000.0,0.0003179,9]
[341430993,1730879441172,-174.470666,0.0003179,7]
[341430994,1730879441182,-174.470666,0.0003179,7]
[341430995,1730879441196,-228.927548,0.0003179,7]
[341430996,1730879441206,-228.927548,0.0003179,7]
[341430997,1730879441216,-174.64283705,0.00031797,30]
[341430998,1730879441226,-524.62,0.000318,14]
[341430999,1730879441237,-662.5,0.000318,14]
[341431000,1730879441249,-151.0,0.000318,7]
[341431001,1730879441258,-151.0,0.000318,7]
[341431002,1730879441268,-151.0,0.000318,7]
[341431003,1730879441278,-155.915242,0.000318,7]
[341431004,1730879441287,-151.0,0.000318,7]
[341431005,1730879441299,-156.290171,0.000318,7]
[341431006,1730879441309,-216.292038,0.000318,7]
[341431007,1730879441319,-216.292038,0.000318,7]
[341431008,1730879441332,-500.0,0.000318,2]
[341431009,1730879441342,-151.0,0.000318,7]
[341431010,1730879441352,-206.242923,0.000318,7]
[341431011,1730879441361,-151.0,0.000318,7]
[341431012,1730879441371,-154.156699,0.000318,7]
[341431013,1730879441380,-151.0,0.000318,7]
[341431014,1730879441390,-151.0,0.000318,7]
[341431015,1730879441399,-275.749633,0.000318,7]
[341431016,1730879441409,-275.749633,0.000318,7]
[341431017,1730879441418,-275.749633,0.000318,7]
[341431018,1730879441428,-275.749633,0.000318,7]
[341431019,1730879441438,-151.0,0.000318,7]
[341431020,1730879441448,-151.0,0.000318,7]
[341431021,1730879441457,-151.0,0.000318,7]
[341431022,1730879441467,-151.0,0.000318,7]
[341431023,1730879441477,-151.0,0.000318,7]
[341431024,1730879441487,-151.0,0.000318,7]
[341431025,1730879441497,-151.0,0.000318,7]
[341431026,1730879441508,-151.0,0.000318,7]
[341431027,1730879441517,-151.0,0.000318,7]
[341431028,1730879441528,-151.0,0.000318,7]
[341431029,1730879441538,-151.0,0.000318,7]
[341431030,1730879441547,-151.0,0.000318,7]
[341431031,1730879441557,-151.0,0.000318,7]
[341431032,1730879441566,-151.0,0.000318,7]
[341431033,1730879441577,-737.053366,0.000318,7]
[341431034,1730879441586,-737.053366,0.000318,7]
[341431035,1730879441596,-1087.698409,0.000318,7]
[341431036,1730879441605,-1087.698409,0.000318,7]
[341431037,1730879441615,-737.053366,0.000318,7]
[341431038,1730879441624,-737.053366,0.000318,7]
[341431039,1730879441634,-1087.698409,0.000318,7]
[341431040,1730879441644,-1087.698409,0.000318,7]
[341431041,1730879441653,-151.0,0.000318,7]
[341431042,1730879441663,-207.738634,0.000318,7]
[341431043,1730879441672,-623.235953,0.000318,7]
[341431044,1730879441682,-623.235953,0.000318,7]
[341431045,1730879441691,-151.0,0.000318,3]
[341431046,1730879441701,-151.0,0.000318,3]
[341431047,1730879441831,-151.0,0.000318,7]
[341431048,1730879441841,-151.0,0.000318,7]
[341431049,1730879441852,-3000.0,0.000318,9]
[341431050,1730879441862,-151.0,0.000318,7]
[341431051,1730879441871,-151.0,0.000318,7]
[341431052,1730879441883,-174.470666,0.000318,7]
[341431053,1730879441892,-174.470666,0.000318,7]
[341431054,1730879441903,-151.0,0.000318,7]
[341431055,1730879441916,-154.804561,0.000318,7]
[341431056,1730879441927,-228.927548,0.000318,7]
[341431057,1730879441938,-228.927548,0.000318,7]
[341431058,1730879441947,-219.922894,0.000318,7]
[341431059,1730879441959,-219.922894,0.000318,7]
[341431060,1730879441970,-219.922894,0.000318,7]
[341431061,1730879441979,-219.922894,0.000318,7]
[341431062,1730879441989,-219.922894,0.000318,7]
[341431063,1730879442001,-219.922894,0.000318,7]
[341431064,1730879442011,-151.0,0.000318,7]
[341431065,1730879442022,-151.0,0.000318,7]
[341431066,1730879442034,-151.0,0.000318,7]
[341431067,1730879442043,-151.0,0.000318,7]
[341431068,1730879442053,-159.910332,0.000318,7]
[341431069,1730879442063,-151.0,0.000318,7]
[341431070,1730879442075,-151.0,0.000318,7]
[341431071,1730879442085,-151.0,0.000318,7]
[341431072,1730879442094,-151.0,0.000318,7]
[341431073,1730879442104,-151.0,0.000318,7]
[341431074,1730879442114,-151.0,0.000318,7]
[341431075,1730879442124,-155.508223,0.000318,7]
[341431076,1730879442135,-151.0,0.000318,7]
[341431077,1730879442145,-151.0,0.000318,7]
[341431078,1730879442155,-162.892431,0.000318,7]
[341431079,1730879442167,-162.892431,0.000318,7]
[341431080,1730879442176,-162.892431,0.000318,7]
[341431081,1730879442187,-162.892431,0.000318,7]
[341431082,1730879442198,-151.0,0.000318,7]
[341431083,1730879442210,-151.0,0.000318,7]
[341431084,1730879442221,-788.693941,0.000318,7]
[341431085,1730879442231,-788.693941,0.000318,7]
[341431086,1730879442243,-788.693941,0.000318,7]
[341431087,1730879442252,-788.693941,0.000318,7]
[341431088,1730879442262,-151.0,0.000318,7]
[341431089,1730879442273,-570.463046,0.000318,7]
[341431090,1730879442284,-570.463046,0.000318,7]
[341431091,1730879442293,-570.463046,0.000318,7]
[341431092,1730879442304,-570.463046,0.000318,7]
[341431093,1730879442314,-151.0,0.000318,7]
[341431094,1730879442326,-151.0,0.000318,7]
[341431095,1730879442335,-534.073727,0.000318,7]
[341431096,1730879442345,-534.073727,0.000318,7]
[341431097,1730879442356,-534.073727,0.000318,7]
[341431098,1730879442365,-534.073727,0.000318,7]
[341431099,1730879442375,-151.0,0.000318,7]
[341431100,1730879442386,-151.0,0.000318,7]
[341431101,1730879442396,-277570.62897555,0.000318,2]
[341431102,1730879442412,-14579.41382364,0.000318,2]
[341431103,1730879442831,-18452.20492699,0.000318,2]
[341431104,1730879443033,-2042.00100988,0.000318,2]
[341431155,1730879443856,-195.685031,0.000317,7]
[341431156,1730879443867,-151.0,0.0003177,2]
[341431157,1730879443878,-151.0,0.0003177,7]
[341431158,1730879443908,-195.685031,0.0003177,7]
[341431159,1730879443948,-151.0,0.0003177,7]
[341431160,1730879444045,-151.0,0.0003178,2]
[341431162,1730879444130,-151.0,0.0003178,7]
[341431164,1730879444250,-195.685031,0.0003178,7]
[341431166,1730879444327,-151.0,0.0003178,7]
[341431169,1730879444452,-704.38542749,0.000318,2]
[341431174,1730879444840,-322546.08074045,0.000318,2]
[341431175,1730879444861,-317.02945,0.000318,7]
[341431177,1730879444872,-317.02945,0.000318,7]
[341431179,1730879444882,-317.02945,0.000318,7]
[341431181,1730879444893,-317.02945,0.000318,7]
[341431183,1730879444903,-181.956772,0.000318,7]
[341431185,1730879444913,-181.956772,0.000318,7]
[341431187,1730879444923,-181.956772,0.000318,7]
[341431190,1730879444936,-181.956772,0.000318,7]
[341431192,1730879444946,-203.96632,0.000318,7]
[341431194,1730879444955,-203.96632,0.000318,7]
[341431196,1730879444965,-203.96632,0.000318,7]
[341431198,1730879444975,-203.96632,0.000318,7]
[341431200,1730879444984,-1089.292932,0.000318,7]
[341431202,1730879444994,-1089.292932,0.000318,7]
[341431203,1730879445004,-1089.292932,0.000318,7]
[341431206,1730879445014,-1089.292932,0.000318,7]
[341431208,1730879445024,-151.0,0.000318,7]
[341431210,1730879445034,-151.0,0.000318,7]
[341431212,1730879445043,-152.273161,0.000318,7]
[341431213,1730879445053,-152.273161,0.000318,7]
[341431215,1730879445063,-152.273161,0.000318,7]
[341431217,1730879445076,-152.273161,0.000318,7]
[341431219,1730879445085,-830.044982,0.000318,7]
[341431221,1730879445095,-830.044982,0.000318,7]
[341431223,1730879445105,-830.044982,0.000318,7]
[341431225,1730879445115,-830.044982,0.000318,7]
[341431227,1730879445124,-151.0,0.000318,2]
[341431229,1730879445134,-151.0,0.000318,7]
[341431232,1730879445143,-195.685031,0.000318,7]
[341431234,1730879445154,-151.0,0.000318,7]
[341431236,1730879445164,-151.0,0.000318,7]
[341431238,1730879445173,-195.685031,0.000318,7]
[341431240,1730879445183,-151.0,0.000318,2]
[341431242,1730879445192,-151.0,0.000318,7]
[341431244,1730879445201,-623.235953,0.0003181,7]
[341431246,1730879445211,-623.235953,0.0003181,7]
[341431248,1730879445221,-3000.0,0.0003181,9]
[341431250,1730879445231,-174.470666,0.0003181,7]
[341431252,1730879445241,-1000.0,0.0003181,28]
[341431254,1730879445251,-1000.0,0.0003181,28]
[341431256,1730879445263,-1000.0,0.0003181,28]
[341431258,1730879445274,-1000.0,0.0003181,28]
[341431271,1730879445399,-1000.0,0.0003181,28]
[341431273,1730879445410,-1000.0,0.0003181,28]
[341431275,1730879445420,-1000.0,0.0003181,28]
[341431277,1730879445430,-174.470666,0.0003181,7]
[341431279,1730879445440,-1000.0,0.0003181,28]
[341431281,1730879445449,-1000.0,0.0003181,28]
[341431283,1730879445460,-1000.0,0.0003181,28]
[341431285,1730879445469,-1000.0,0.0003181,28]
[341431287,1730879445479,-1000.0,0.0003181,28]
[341431289,1730879445489,-1000.0,0.0003181,28]
[341431291,1730879445499,-1000.0,0.0003181,28]
[341431293,1730879445509,-1000.0,0.0003181,28]
[341431295,1730879445518,-1000.0,0.0003181,28]
[341431297,1730879445528,-1000.0,0.0003181,28]
[341431299,1730879445538,-1000.0,0.0003181,28]
[341431301,1730879445548,-1000.0,0.0003181,28]
[341431303,1730879445557,-1000.0,0.0003181,28]
[341431305,1730879445566,-1000.0,0.0003181,28]
[341431307,1730879445578,-1000.0,0.0003181,28]
[341431309,1730879445588,-1000.0,0.0003181,28]
[341431311,1730879445597,-1000.0,0.0003181,28]
[341431313,1730879445607,-228.927548,0.0003181,7]
[341431315,1730879445617,-1000.0,0.0003181,28]
[341431317,1730879445627,-1000.0,0.0003181,28]
[341431319,1730879445637,-1000.0,0.0003181,28]
[341431321,1730879445647,-1000.0,0.0003181,28]
[341431323,1730879445657,-1000.0,0.0003181,28]
[341431325,1730879445667,-1000.0,0.0003181,28]
[341431327,1730879445678,-1000.0,0.0003181,28]
[341431329,1730879445688,-1000.0,0.0003181,28]
[341431331,1730879445699,-1000.0,0.0003181,28]
[341431333,1730879445708,-1000.0,0.0003181,28]
[341431335,1730879445719,-1000.0,0.0003181,28]
[341431337,1730879445730,-1000.0,0.0003181,28]
[341431339,1730879445740,-228.927548,0.0003181,7]
[341431341,1730879445751,-1000.0,0.0003181,28]
[341431344,1730879445763,-1000.0,0.0003181,28]
[341431346,1730879445773,-1000.0,0.0003181,28]
[341431348,1730879445783,-1000.0,0.0003181,28]
[341431351,1730879445807,-1000.0,0.0003181,28]
[341431353,1730879445819,-1000.0,0.0003181,28]
[341431355,1730879445831,-1052.37512873,0.0003181,28]
[341431358,1730879445843,-151.0,0.0003181,7]
[341431360,1730879445855,-151.0,0.0003181,7]
[341431362,1730879445864,-162.892431,0.0003181,7]
[341431364,1730879445875,-162.892431,0.0003181,7]
[341431366,1730879445887,-151.0,0.0003181,7]
[341431368,1730879445899,-151.0,0.0003181,7]
[341431370,1730879445910,-788.693941,0.0003181,7]
[341431372,1730879445921,-788.693941,0.0003181,7]
[341431374,1730879445932,-570.463046,0.0003181,7]
[341431376,1730879445942,-570.463046,0.0003181,7]
[341431378,1730879445951,-570.463046,0.0003181,7]
[341431381,1730879445963,-570.463046,0.0003181,7]
[341431383,1730879445974,-151.0,0.0003181,7]
[341431385,1730879445984,-534.073727,0.0003181,7]
[341431387,1730879445995,-534.073727,0.0003181,7]
[341431389,1730879446005,-534.073727,0.0003181,7]
[341431391,1730879446016,-534.073727,0.0003181,7]
[341431394,1730879446026,-151.0,0.0003181,7]
[341431396,1730879446037,-151.0,0.0003181,7]
[341431398,1730879446047,-317.02945,0.0003181,7]
[341431400,1730879446056,-317.02945,0.0003181,7]
[341431401,1730879446066,-317.02945,0.0003181,7]
[341431404,1730879446079,-317.02945,0.0003181,7]
[341431406,1730879446091,-181.956772,0.0003181,7]
[341431408,1730879446102,-181.956772,0.0003181,7]
[341431411,1730879446112,-181.956772,0.0003181,7]
[341431414,1730879446124,-181.956772,0.0003181,7]
[341431416,1730879446134,-203.96632,0.0003181,7]
[341431419,1730879446146,-203.96632,0.0003181,7]
[341431421,1730879446157,-203.96632,0.0003181,7]
[341431423,1730879446168,-203.96632,0.0003181,7]
[341431425,1730879446178,-1089.292932,0.0003181,7]
[341431427,1730879446190,-1089.292932,0.0003181,7]
[341431430,1730879446200,-1089.292932,0.0003181,7]
[341431433,1730879446210,-1089.292932,0.0003181,7]
[341431435,1730879446220,-151.0,0.0003181,7]
[341431437,1730879446231,-151.0,0.0003181,7]
[341431439,1730879446241,-152.273161,0.0003181,7]
[341431441,1730879446251,-152.273161,0.0003181,7]
[341431443,1730879446261,-152.273161,0.0003181,7]
[341431445,1730879446271,-152.273161,0.0003181,7]
[341431447,1730879446282,-830.044982,0.0003181,7]
[341431449,1730879446292,-830.044982,0.0003181,7]
[341431450,1730879446302,-830.044982,0.0003181,7]
[341431452,1730879446312,-830.044982,0.0003181,7]
[341431454,1730879446321,-151.0,0.0003181,7]
[341431456,1730879446334,-195.685031,0.0003181,7]
[341431458,1730879446345,-151.0,0.0003181,7]
[341431460,1730879446356,-151.0,0.0003181,7]
[341431462,1730879446366,-151.0,0.0003181,2]
[341431464,1730879446377,-195.685031,0.0003181,7]
[341431467,1730879446393,-151.0,0.0003181,7]
[341431469,1730879446403,-3000.0,0.0003182,9]
[341431471,1730879446414,-151.0,0.0003182,7]
[341431474,1730879446424,-151.0,0.0003182,7]
[341431477,1730879446435,-162.892431,0.0003182,7]
[341431480,1730879446446,-162.892431,0.0003182,7]
[341431482,1730879446458,-788.693941,0.0003182,7]
[341431484,1730879446468,-788.693941,0.0003182,7]
[341431486,1730879446479,-151.0,0.0003182,7]
[341431488,1730879446490,-3000.0,0.0003183,9]
[341431490,1730879446500,-151.0,0.0003184,7]
[341431492,1730879446511,-151.0,0.0003184,7]
[341431494,1730879446523,-153.597442,0.0003184,7]
[341431496,1730879446534,-151.0,0.0003184,7]
[341431498,1730879446543,-1087.698409,0.0003184,7]
[341431500,1730879446554,-1087.698409,0.0003184,7]
[341431502,1730879446564,-151.0,0.0003184,3]
[341431504,1730879446576,-3000.0,0.0003184,9]
[341431506,1730879446587,-280.806293,0.0003184,7]
[341431508,1730879446597,-219.922894,0.0003184,7]
[341431510,1730879446608,-219.922894,0.0003184,7]
[341431512,1730879446618,-151.0,0.0003184,7]
[341431514,1730879446628,-152.878976,0.0003184,7]
[341431516,1730879446639,-317.02945,0.0003184,7]
[341431518,1730879446648,-317.02945,0.0003184,7]
[341431520,1730879446659,-181.956772,0.0003184,7]
[341431522,1730879446670,-181.956772,0.0003184,7]
[341431524,1730879446680,-203.96632,0.0003184,7]
[341431526,1730879446691,-203.96632,0.0003184,7]
[341431528,1730879446703,-151.0,0.0003184,7]
[341431530,1730879446713,-830.044982,0.0003184,7]
[341431532,1730879446723,-830.044982,0.0003184,7]
[341431534,1730879446732,-151.0,0.0003184,7]
[341431535,1730879446742,-151.0,0.0003185,7]
[341431537,1730879446752,-248.7689283,0.0003185,7]
[341431539,1730879446763,-3000.0,0.0003185,9]
[341431541,1730879446773,-151.0,0.0003186,7]
[341431543,1730879446783,-151.0,0.0003186,7]
[341431545,1730879446795,-737.053366,0.0003186,7]
[341431548,1730879446808,-737.053366,0.0003186,7]
[341431550,1730879446820,-623.235953,0.0003186,7]
[341431552,1730879446835,-623.235953,0.0003186,7]
[341431554,1730879446845,-3000.0,0.0003186,9]
[341431556,1730879446854,-174.470666,0.0003186,7]
[341431557,1730879446863,-174.470666,0.0003186,7]
[341431559,1730879446875,-228.927548,0.0003186,7]
[341431562,1730879446888,-228.927548,0.0003186,7]
[341431564,1730879446901,-151.0,0.0003186,7]
[341431566,1730879446912,-151.0,0.0003186,7]
[341431568,1730879446923,-162.892431,0.0003186,7]
[341431570,1730879446934,-162.892431,0.0003186,7]
[341431572,1730879446946,-285.084266,0.0003186,7]
[341431574,1730879446957,-788.693941,0.0003186,7]
[341431576,1730879446967,-788.693941,0.0003186,7]
[341431578,1730879446978,-570.463046,0.0003186,7]
[341431580,1730879446989,-570.463046,0.0003186,7]
[341431582,1730879446999,-234.093745,0.0003186,7]
[341431585,1730879447009,-534.073727,0.0003186,7]
[341431587,1730879447019,-534.073727,0.0003186,7]
[341431589,1730879447029,-1089.292932,0.0003186,7]
[341431591,1730879447038,-1089.292932,0.0003186,7]
[341431593,1730879447048,-152.273161,0.0003186,7]
[341431595,1730879447058,-152.273161,0.0003186,7]
[341431597,1730879447068,-3000.0,0.0003187,9]
[341431599,1730879447079,-500.0,0.00031873,5]
[341431601,1730879447090,-502.34998704,0.00031873,5]
[341431603,1730879447099,-199.97594423,0.00031873,5]
[341431605,1730879447110,-500.0,0.00031873,5]
[341431607,1730879447121,-500.0,0.00031873,5]
[341431609,1730879447131,-500.0,0.00031873,5]
[341431611,1730879447140,-500.0,0.00031873,5]
[341431613,1730879447150,-275.749633,0.0003188,7]
[341431615,1730879447159,-275.749633,0.0003188,7]
[341431617,1730879447169,-3000.0,0.0003188,9]
[341431619,1730879447178,-317.02945,0.0003188,7]
[341431621,1730879447187,-317.02945,0.0003188,7]
[341431623,1730879447198,-181.956772,0.0003188,7]
[341431625,1730879447208,-181.956772,0.0003188,7]
[341431628,1730879447219,-203.96632,0.0003188,7]
[341431630,1730879447229,-203.96632,0.0003188,7]
[341431632,1730879447239,-233.536275,0.0003188,7]
[341431634,1730879447250,-830.044982,0.0003188,7]
[341431636,1730879447260,-830.044982,0.0003188,7]
[341431638,1730879447269,-151.0,0.0003189,7]
[341431640,1730879447278,-151.0,0.0003189,3]
[341431642,1730879447288,-5575.538481,0.0003189,9]
[341431644,1730879447298,-219.922894,0.0003189,7]
[341431646,1730879447308,-219.922894,0.0003189,7]
[341431648,1730879447317,-151.0,0.0003189,7]
[341431650,1730879447327,-1210.43,0.000319,30]
[341431652,1730879447337,-1194.49,0.000319,30]
[341431654,1730879447348,-2346.83,0.000319,14]
[341431656,1730879447358,-151.0,0.000319,7]
[341431658,1730879447369,-151.0,0.000319,7]
[341431660,1730879447378,-151.0,0.000319,7]
[341431662,1730879447388,-216.292038,0.000319,7]
[341431664,1730879447398,-216.292038,0.000319,7]
[341431666,1730879447408,-151.0,0.000319,7]
[341431668,1730879447418,-151.0,0.000319,7]
[341431669,1730879447428,-275.749633,0.000319,7]
[341431671,1730879447438,-275.749633,0.000319,7]
[341431674,1730879447448,-275.749633,0.000319,7]
[341431676,1730879447458,-275.749633,0.000319,7]
[341431677,1730879447467,-151.0,0.000319,7]
[341431679,1730879447477,-151.0,0.000319,7]
[341431681,1730879447486,-151.0,0.000319,7]
[341431683,1730879447496,-151.0,0.000319,7]
[341431686,1730879447507,-151.0,0.000319,7]
[341431688,1730879447516,-500.0,0.000319,37]
[341431690,1730879447526,-151.0,0.000319,7]
[341431692,1730879447536,-224.055075,0.000319,7]
[341431694,1730879447546,-151.0,0.000319,7]
[341431696,1730879447556,-151.0,0.000319,7]
[341431698,1730879447566,-737.053366,0.000319,7]
[341431700,1730879447575,-737.053366,0.000319,7]
[341431702,1730879447588,-1087.698409,0.000319,7]
[341431704,1730879447597,-1087.698409,0.000319,7]
[341431705,1730879447608,-737.053366,0.000319,7]
[341431719,1730879447725,-737.053366,0.000319,7]
[341431721,1730879447736,-1087.698409,0.000319,7]
[341431723,1730879447747,-1087.698409,0.000319,7]
[341431725,1730879447758,-623.235953,0.000319,7]
[341431727,1730879447768,-623.235953,0.000319,7]
[341431729,1730879447778,-623.235953,0.000319,7]
[341431731,1730879447788,-623.235953,0.000319,7]
[341431733,1730879447798,-150.2407842,0.000319,14]
[341431735,1730879447812,-199.62787951,0.000319,7]
[341431737,1730879447822,-151.0,0.000319,3]
[341431739,1730879447833,-174.470666,0.000319,7]
[341431741,1730879447843,-174.470666,0.000319,7]
[341431743,1730879447852,-174.470666,0.000319,7]
[341431745,1730879447862,-174.470666,0.000319,7]
[341431747,1730879447872,-228.927548,0.000319,7]
[341431749,1730879447883,-228.927548,0.000319,7]
[341431751,1730879447892,-228.927548,0.000319,7]
[341431753,1730879447902,-228.927548,0.000319,7]
[341431755,1730879447911,-219.922894,0.000319,7]
[341431757,1730879447921,-219.922894,0.000319,7]
[341431759,1730879447930,-219.922894,0.000319,7]
[341431761,1730879447940,-219.922894,0.000319,7]
[341431763,1730879447950,-151.0,0.000319,7]
[341431765,1730879447959,-151.0,0.000319,7]
[341431767,1730879447969,-151.0,0.000319,7]
[341431769,1730879447978,-151.0,0.000319,7]
[341431771,1730879447988,-151.0,0.000319,7]
[341431772,1730879447998,-151.0,0.000319,7]
[341431774,1730879448008,-162.892431,0.000319,7]
[341431776,1730879448018,-162.892431,0.000319,7]
[341431778,1730879448028,-162.892431,0.000319,7]
[341431780,1730879448038,-162.892436,0.000319,7]
[341431782,1730879448048,-788.693941,0.000319,7]
[341431784,1730879448058,-788.693941,0.000319,7]
[341431786,1730879448068,-788.693941,0.000319,7]
[341431788,1730879448079,-788.693935,0.000319,7]
[341431790,1730879448089,-570.463046,0.000319,7]
[341431792,1730879448099,-570.463046,0.000319,7]
[341431794,1730879448108,-570.463046,0.000319,7]
[341431796,1730879448118,-570.463046,0.000319,7]
[341431798,1730879448127,-570.463046,0.000319,7]
[341431800,1730879448137,-570.463056,0.000319,7]
[341431802,1730879448146,-534.073727,0.000319,7]
[341431804,1730879448156,-534.073727,0.000319,7]
[341431806,1730879448166,-534.073727,0.000319,7]
[341431808,1730879448175,-534.073727,0.000319,7]
[341431810,1730879448185,-534.073727,0.000319,7]
[341431812,1730879448195,-534.073721,0.000319,7]
[341431814,1730879448204,-850056.661211,0.000319,2]
[341431816,1730879448214,-153.74017192,0.000319,14]
[341431818,1730879448223,-317.02945,0.000319,7]
[341431820,1730879448233,-317.02945,0.000319,7]
[341431822,1730879448243,-317.02945,0.000319,7]
[341431824,1730879448253,-317.029452,0.000319,7]
[341431826,1730879448262,-158.05900812,0.000319,14]
[341431828,1730879448272,-150.77528158,0.000319,14]
[341431830,1730879448282,-154.4867216,0.000319,14]
[341431832,1730879448292,-181.956772,0.000319,7]
[341431834,1730879448301,-181.956772,0.000319,7]
[341431836,1730879448310,-181.956772,0.000319,7]
[341431838,1730879448319,-181.956774,0.000319,7]
[341431840,1730879448331,-203.96632,0.000319,7]
[341431842,1730879448340,-203.96632,0.000319,7]
[341431844,1730879448349,-203.96632,0.000319,7]
[341431846,1730879448358,-203.96632,0.000319,7]
[341431847,1730879448367,-1089.292932,0.000319,7]
[341431849,1730879448376,-1089.292932,0.000319,7]
[341431851,1730879448386,-1089.292932,0.000319,7]
[341431853,1730879448396,-1089.292932,0.000319,7]
[341431855,1730879448405,-1089.292932,0.000319,7]
[341431857,1730879448415,-1089.292933,0.000319,7]
[341431859,1730879448424,-152.273161,0.000319,7]
[341431861,1730879448434,-152.273161,0.000319,7]
[341431863,1730879448444,-152.273161,0.000319,7]
[341431865,1730879448453,-152.273161,0.000319,7]
[341431867,1730879448463,-152.273161,0.000319,7]
[341431869,1730879448472,-152.273164,0.000319,7]
[341431871,1730879448483,-830.044982,0.000319,7]
[341431873,1730879448493,-830.044982,0.000319,7]